[Event "Early-Titled-Tuesday-Blitz-December-26-2023"]
[Site "Chess.com"]
[Date "2023.12.26"]
[Round "5"]
[White "karinachess1"]
[Black "nitpicker"]
[Result "1-0"]
[WhiteElo "2569"]
[BlackElo "2305"]
[TimeControl "180+1"]
[EndTime "8:56:12 PST"]
[Termination "karinachess1 won on time"]

1. d4 {[%clk 0:03:00.9]} 1... Nf6 {[%clk 0:02:35.1]} 2. c4 {[%clk 0:03:00.8]}
2... e6 {[%clk 0:02:34.9]} 3. Nc3 {[%clk 0:03:00.9]} 3... Bb4 {[%clk 0:02:34]}
4. Qc2 {[%clk 0:03:01.2]} 4... d5 {[%clk 0:02:32.4]} 5. a3 {[%clk 0:03:01.3]}
5... Bxc3+ {[%clk 0:02:28.3]} 6. Qxc3 {[%clk 0:03:02.2]} 6... O-O {[%clk
0:02:07]} 7. Nf3 {[%clk 0:03:02.1]} 7... b6 {[%clk 0:01:58.5]} 8. e3 {[%clk
0:02:54.3]} 8... Bb7 {[%clk 0:01:58.4]} 9. Be2 {[%clk 0:02:48.4]} 9... Nbd7
{[%clk 0:01:58.3]} 10. O-O {[%clk 0:02:46.7]} 10... Rc8 {[%clk 0:01:52.3]} 11.
b3 {[%clk 0:02:03.8]} 11... Ne4 {[%clk 0:01:50.4]} 12. Qc2 {[%clk 0:02:01.6]}
12... c5 {[%clk 0:01:50.2]} 13. dxc5 {[%clk 0:01:34.6]} 13... bxc5 {[%clk
0:01:42.4]} 14. Bb2 {[%clk 0:01:34.4]} 14... Qe7 {[%clk 0:01:33]} 15. Rfd1
{[%clk 0:01:33.4]} 15... Rfd8 {[%clk 0:01:32.1]} 16. Rac1 {[%clk 0:01:31.6]}
16... h6 {[%clk 0:01:20.4]} 17. Qb1 {[%clk 0:01:31.6]} 17... Ng5 {[%clk
0:01:10.2]} 18. Qa1 {[%clk 0:01:24.6]} 18... dxc4 {[%clk 0:01:00.9]} 19. Rxc4
{[%clk 0:01:06.3]} 19... f6 {[%clk 0:00:55.7]} 20. Nxg5 {[%clk 0:01:03]} 20...
hxg5 {[%clk 0:00:55]} 21. Rdc1 {[%clk 0:00:59.6]} 21... Bd5 {[%clk 0:00:54.9]}
22. R4c3 {[%clk 0:00:59.1]} 22... Rb8 {[%clk 0:00:54.6]} 23. a4 {[%clk
0:00:33.4]} 23... Bxb3 {[%clk 0:00:45]} 24. Bb5 {[%clk 0:00:33.4]} 24... Bd5
{[%clk 0:00:28]} 25. Ba3 {[%clk 0:00:33.7]} 25... Kf7 {[%clk 0:00:22.4]} 26.
Bxc5 {[%clk 0:00:31.7]} 26... Nxc5 {[%clk 0:00:20.6]} 27. Rxc5 {[%clk
0:00:32.6]} 27... Rb7 {[%clk 0:00:18]} 28. f3 {[%clk 0:00:27.5]} 28... Qd6
{[%clk 0:00:15.5]} 29. Qc3 {[%clk 0:00:23.9]} 29... Rh8 {[%clk 0:00:14.6]} 30.
Rc7+ {[%clk 0:00:17.6]} 30... Kg6 {[%clk 0:00:12.1]} 31. h3 {[%clk 0:00:15.5]}
31... Qg3 {[%clk 0:00:09.8]} 32. e4 {[%clk 0:00:12.3]} 32... Rxc7 {[%clk
0:00:08.3]} 33. Qxc7 {[%clk 0:00:12.1]} 33... Qxc7 {[%clk 0:00:06.2]} 34. Rxc7
{[%clk 0:00:13]} 34... Bb3 {[%clk 0:00:05.6]} 35. Rxa7 {[%clk 0:00:13]} 35...
Rd8 {[%clk 0:00:05.9]} 36. a5 {[%clk 0:00:11.5]} 36... Rd2 {[%clk 0:00:04.5]}
37. Be8+ {[%clk 0:00:10.8]} 37... Kh6 {[%clk 0:00:03.5]} 38. a6 {[%clk
0:00:11.2]} 38... Bc4 {[%clk 0:00:03]} 39. Ra8 {[%clk 0:00:09.8]} 39... Rd1+
{[%clk 0:00:02.5]} 40. Kf2 {[%clk 0:00:10]} 40... f5 {[%clk 0:00:02.4]} 41. exf5
{[%clk 0:00:09.8]} 41... exf5 {[%clk 0:00:02.2]} 42. g3 {[%clk 0:00:09.8]} 42...
f4 {[%clk 0:00:02.3]} 43. gxf4 {[%clk 0:00:10]} 43... gxf4 {[%clk 0:00:02.7]}
44. Rc8 {[%clk 0:00:09.7]} 44... Rd2+ {[%clk 0:00:02.2]} 45. Ke1 {[%clk
0:00:09.4]} 45... Re2+ {[%clk 0:00:01.5]} 46. Kd1 {[%clk 0:00:09.9]} 1-0

[Event "Early-Titled-Tuesday-Blitz-December-26-2023"]
[Site "Chess.com"]
[Date "2023.12.26"]
[Round "5"]
[White "drillovsky"]
[Black "Hoshka"]
[Result "1-0"]
[WhiteElo "2368"]
[BlackElo "2033"]
[TimeControl "180+1"]
[EndTime "8:56:14 PST"]
[Termination "drillovsky won on time"]

1. e4 {[%clk 0:02:59.3]} 1... e5 {[%clk 0:02:59.4]} 2. Nf3 {[%clk 0:02:59]} 2...
Nc6 {[%clk 0:02:58.9]} 3. Bb5 {[%clk 0:02:59.5]} 3... a6 {[%clk 0:02:58.4]} 4.
Ba4 {[%clk 0:02:55.9]} 4... Nf6 {[%clk 0:02:58.1]} 5. Bxc6 {[%clk 0:02:55.6]}
5... dxc6 {[%clk 0:02:57.4]} 6. O-O {[%clk 0:02:56.5]} 6... Bd6 {[%clk
0:02:55.4]} 7. d3 {[%clk 0:02:55.4]} 7... Nd7 {[%clk 0:02:52]} 8. b3 {[%clk
0:02:38.8]} 8... c5 {[%clk 0:02:50.3]} 9. Bb2 {[%clk 0:02:38.6]} 9... O-O {[%clk
0:02:50]} 10. Nbd2 {[%clk 0:02:37]} 10... Qe7 {[%clk 0:02:45.7]} 11. a4 {[%clk
0:02:35.4]} 11... Nb8 {[%clk 0:02:43.5]} 12. Nc4 {[%clk 0:02:21]} 12... Nc6
{[%clk 0:02:43.2]} 13. h3 {[%clk 0:02:20.3]} 13... Nd4 {[%clk 0:02:32]} 14. a5
{[%clk 0:02:19.8]} 14... Bd7 {[%clk 0:02:23.3]} 15. c3 {[%clk 0:01:49.8]} 15...
Nc6 {[%clk 0:02:15.8]} 16. Bc1 {[%clk 0:01:42.5]} 16... Rad8 {[%clk 0:02:02.6]}
17. Be3 {[%clk 0:01:41.5]} 17... f6 {[%clk 0:01:51.9]} 18. Qd2 {[%clk
0:01:27.2]} 18... Be6 {[%clk 0:01:51.4]} 19. Nh2 {[%clk 0:01:25.3]} 19... Qd7
{[%clk 0:01:46.2]} 20. f4 {[%clk 0:01:23.1]} 20... Be7 {[%clk 0:01:36]} 21. Rad1
{[%clk 0:01:17.8]} 21... Bxc4 {[%clk 0:01:12.5]} 22. bxc4 {[%clk 0:01:17.6]}
22... Nxa5 {[%clk 0:01:09.4]} 23. fxe5 {[%clk 0:01:07.9]} 23... fxe5 {[%clk
0:01:08.9]} 24. Ng4 {[%clk 0:00:54.9]} 24... Rxf1+ {[%clk 0:01:05.8]} 25. Kxf1
{[%clk 0:00:53.3]} 25... Qe6 {[%clk 0:00:46.6]} 26. Qe2 {[%clk 0:00:50.6]} 26...
b6 {[%clk 0:00:43.9]} 27. Kg1 {[%clk 0:00:50.5]} 27... Nb7 {[%clk 0:00:31.8]}
28. Bf2 {[%clk 0:00:49.5]} 28... Nd6 {[%clk 0:00:31]} 29. Bg3 {[%clk 0:00:50]}
29... Nf7 {[%clk 0:00:29.8]} 30. Rf1 {[%clk 0:00:49.1]} 30... Bg5 {[%clk
0:00:23.9]} 31. h4 {[%clk 0:00:45.6]} 31... Be7 {[%clk 0:00:21.3]} 32. Qf3
{[%clk 0:00:42.9]} 32... Rf8 {[%clk 0:00:20.9]} 33. Qf5 {[%clk 0:00:31.4]} 33...
Qxf5 {[%clk 0:00:18.6]} 34. exf5 {[%clk 0:00:30.9]} 34... Rd8 {[%clk 0:00:13.7]}
35. Bxe5 {[%clk 0:00:23.1]} 35... Rxd3 {[%clk 0:00:11.7]} 36. Bxc7 {[%clk
0:00:22.3]} 36... Rxc3 {[%clk 0:00:07.9]} 37. Re1 {[%clk 0:00:22]} 37... Kf8
{[%clk 0:00:07]} 38. Bxb6 {[%clk 0:00:18.9]} 38... Rxc4 {[%clk 0:00:06.5]} 39.
Ne3 {[%clk 0:00:19.5]} 39... Re4 {[%clk 0:00:04.5]} 40. Kf2 {[%clk 0:00:17.6]}
1-0

[Event "Early-Titled-Tuesday-Blitz-December-26-2023"]
[Site "Chess.com"]
[Date "2023.12.26"]
[Round "5"]
[White "SahibSinghKnight"]
[Black "MetiForce"]
[Result "0-1"]
[WhiteElo "2680"]
[BlackElo "2880"]
[TimeControl "180+1"]
[EndTime "8:56:17 PST"]
[Termination "MetiForce won by checkmate"]

1. e4 {[%clk 0:03:00.9]} 1... g6 {[%clk 0:02:49.7]} 2. d4 {[%clk 0:03:00.5]}
2... Bg7 {[%clk 0:02:50.3]} 3. Nc3 {[%clk 0:03:00.5]} 3... c6 {[%clk 0:02:50.3]}
4. Bf4 {[%clk 0:02:58]} 4... d5 {[%clk 0:02:50.2]} 5. exd5 {[%clk 0:02:55.7]}
5... cxd5 {[%clk 0:02:51.1]} 6. Nf3 {[%clk 0:02:55.5]} 6... Nf6 {[%clk
0:02:51.4]} 7. Bb5+ {[%clk 0:02:49.3]} 7... Nc6 {[%clk 0:02:51]} 8. O-O {[%clk
0:02:48.1]} 8... O-O {[%clk 0:02:51.3]} 9. h3 {[%clk 0:02:47.9]} 9... Bf5 {[%clk
0:02:50.8]} 10. Ne5 {[%clk 0:02:44.2]} 10... Qb6 {[%clk 0:02:46.9]} 11. Bxc6
{[%clk 0:02:42.3]} 11... bxc6 {[%clk 0:02:47.2]} 12. Na4 {[%clk 0:02:41.6]}
12... Qb5 {[%clk 0:02:46.5]} 13. b3 {[%clk 0:02:26.7]} 13... Ne4 {[%clk
0:02:45.8]} 14. c4 {[%clk 0:02:22.2]} 14... Qa6 {[%clk 0:02:30.3]} 15. f3 {[%clk
0:02:17.2]} 15... Nd6 {[%clk 0:02:28.4]} 16. Nc5 {[%clk 0:02:16.6]} 16... Qc8
{[%clk 0:02:28.5]} 17. g4 {[%clk 0:02:10.7]} 17... Be6 {[%clk 0:02:27.4]} 18.
Nxe6 {[%clk 0:02:08.1]} 18... Qxe6 {[%clk 0:02:05.3]} 19. Re1 {[%clk 0:01:48.9]}
19... Qc8 {[%clk 0:02:01.9]} 20. cxd5 {[%clk 0:01:38.8]} 20... cxd5 {[%clk
0:01:57.8]} 21. Rc1 {[%clk 0:01:38.7]} 21... Qb7 {[%clk 0:01:48.8]} 22. Nc6
{[%clk 0:01:38.1]} 22... Rfe8 {[%clk 0:01:49.4]} 23. Nxe7+ {[%clk 0:01:20.6]}
23... Rxe7 {[%clk 0:01:42.4]} 24. Bxd6 {[%clk 0:01:21.5]} 24... Rxe1+ {[%clk
0:01:41.5]} 25. Qxe1 {[%clk 0:01:22.4]} 25... Bxd4+ {[%clk 0:01:42.1]} 26. Kg2
{[%clk 0:01:23.1]} 26... Qa6 {[%clk 0:01:39.7]} 27. Qd2 {[%clk 0:01:02.3]} 27...
Bf6 {[%clk 0:01:30.5]} 28. Bg3 {[%clk 0:00:54.8]} 28... Re8 {[%clk 0:01:30]} 29.
Re1 {[%clk 0:00:52.8]} 29... Rc8 {[%clk 0:01:29.6]} 30. g5 {[%clk 0:00:30.5]}
30... Bc3 {[%clk 0:01:13.7]} 31. Qe2 {[%clk 0:00:10.9]} 31... Qxe2+ {[%clk
0:01:09.3]} 32. Rxe2 {[%clk 0:00:11.1]} 32... d4 {[%clk 0:01:10.2]} 33. Re7
{[%clk 0:00:06.2]} 33... d3 {[%clk 0:00:19.6]} 34. Rd7 {[%clk 0:00:05.6]} 34...
d2 {[%clk 0:00:20.1]} 35. Bf4 {[%clk 0:00:04.3]} 35... Bb4 {[%clk 0:00:19.7]}
36. Bxd2 {[%clk 0:00:02.1]} 36... Rc2 {[%clk 0:00:18.9]} 37. Rxa7 {[%clk
0:00:02.7]} 37... Bxd2 {[%clk 0:00:18.1]} 38. Kg3 {[%clk 0:00:03.3]} 38... Bxg5
{[%clk 0:00:18.4]} 39. f4 {[%clk 0:00:03.9]} 39... Bf6 {[%clk 0:00:17.9]} 40. b4
{[%clk 0:00:02.7]} 40... Rb2 {[%clk 0:00:17.8]} 41. a3 {[%clk 0:00:02.4]} 41...
Bd4 {[%clk 0:00:18]} 42. Rd7 {[%clk 0:00:01.8]} 42... Rb3+ {[%clk 0:00:17.6]}
43. Kg4 {[%clk 0:00:02.1]} 43... Bf6 {[%clk 0:00:17.3]} 44. h4 {[%clk
0:00:02.2]} 44... h5# {[%clk 0:00:17.6]} 0-1

[Event "Early-Titled-Tuesday-Blitz-December-26-2023"]
[Site "Chess.com"]
[Date "2023.12.26"]
[Round "5"]
[White "Alex_Sahakyan2006"]
[Black "ljuks68"]
[Result "1-0"]
[WhiteElo "2708"]
[BlackElo "2511"]
[TimeControl "180+1"]
[EndTime "8:56:17 PST"]
[Termination "Alex_Sahakyan2006 won on time"]

1. e4 {[%clk 0:02:58.2]} 1... e6 {[%clk 0:02:56.7]} 2. d4 {[%clk 0:02:57.8]}
2... d5 {[%clk 0:02:57]} 3. Nc3 {[%clk 0:02:57.2]} 3... Bb4 {[%clk 0:02:55.8]}
4. Bd3 {[%clk 0:02:44.1]} 4... Ne7 {[%clk 0:02:47.1]} 5. Ne2 {[%clk 0:02:43.5]}
5... c5 {[%clk 0:02:38]} 6. exd5 {[%clk 0:02:31.4]} 6... exd5 {[%clk 0:02:36.8]}
7. dxc5 {[%clk 0:02:24.3]} 7... Bxc5 {[%clk 0:02:36.2]} 8. O-O {[%clk
0:02:22.1]} 8... O-O {[%clk 0:02:35.5]} 9. Bg5 {[%clk 0:02:21.3]} 9... f6 {[%clk
0:02:32.3]} 10. Bh4 {[%clk 0:02:15]} 10... Nbc6 {[%clk 0:02:24.1]} 11. Bg3
{[%clk 0:02:07.1]} 11... Be6 {[%clk 0:02:21.4]} 12. Na4 {[%clk 0:01:51.3]} 12...
Bd6 {[%clk 0:02:10.4]} 13. Bxd6 {[%clk 0:01:49.7]} 13... Qxd6 {[%clk 0:02:10.2]}
14. Re1 {[%clk 0:01:48.9]} 14... Ne5 {[%clk 0:02:02.1]} 15. Nd4 {[%clk
0:01:44.6]} 15... Bd7 {[%clk 0:01:57.6]} 16. Nc3 {[%clk 0:01:42.7]} 16... N7g6
{[%clk 0:01:23.5]} 17. Nb3 {[%clk 0:01:25.6]} 17... Bc6 {[%clk 0:01:15.7]} 18.
Bxg6 {[%clk 0:01:18.6]} 18... hxg6 {[%clk 0:01:09.3]} 19. Qd4 {[%clk 0:01:16.5]}
19... Nc4 {[%clk 0:00:54.1]} 20. Rad1 {[%clk 0:01:12.9]} 20... Nxb2 {[%clk
0:00:47.2]} 21. Nxd5 {[%clk 0:00:34.3]} 21... Qxd5 {[%clk 0:00:46.9]} 22. Qxd5+
{[%clk 0:00:34.2]} 22... Bxd5 {[%clk 0:00:47]} 23. Rxd5 {[%clk 0:00:35.1]} 23...
Rad8 {[%clk 0:00:40.7]} 24. Ra5 {[%clk 0:00:20.6]} 24... a6 {[%clk 0:00:27.6]}
25. h4 {[%clk 0:00:20.7]} 25... Rf7 {[%clk 0:00:19.2]} 26. Rc5 {[%clk
0:00:20.1]} 26... Na4 {[%clk 0:00:16.1]} 27. Rc4 {[%clk 0:00:19.5]} 27... Nb6
{[%clk 0:00:15.8]} 28. Rb4 {[%clk 0:00:19.9]} 28... Nd5 {[%clk 0:00:14.2]} 29.
Rbe4 {[%clk 0:00:19.5]} 29... Nc3 {[%clk 0:00:10.6]} 30. Re8+ {[%clk 0:00:18.7]}
30... Rxe8 {[%clk 0:00:09.8]} 31. Rxe8+ {[%clk 0:00:19.6]} 31... Kh7 {[%clk
0:00:07.8]} 32. g3 {[%clk 0:00:17.1]} 32... Rc7 {[%clk 0:00:07.6]} 33. Nd4
{[%clk 0:00:15.1]} 33... Nxa2 {[%clk 0:00:06.9]} 34. Ne6 {[%clk 0:00:14.8]}
34... Rf7 {[%clk 0:00:04.1]} 35. Nf8+ {[%clk 0:00:14.3]} 35... Kh6 {[%clk
0:00:03.4]} 36. Nd7 {[%clk 0:00:13.6]} 36... Kh7 {[%clk 0:00:03.3]} 37. Nf8+
{[%clk 0:00:13.9]} 37... Kh6 {[%clk 0:00:03.7]} 38. Kg2 {[%clk 0:00:13.6]} 38...
g5 {[%clk 0:00:03.7]} 39. hxg5+ {[%clk 0:00:11.3]} 39... Kxg5 {[%clk 0:00:02.7]}
40. Ne6+ {[%clk 0:00:11.9]} 40... Kf5 {[%clk 0:00:02.9]} 41. Nd4+ {[%clk
0:00:12.4]} 41... Kg6 {[%clk 0:00:03.2]} 42. g4 {[%clk 0:00:12.7]} 42... Nc3
{[%clk 0:00:03]} 43. Nf5 {[%clk 0:00:13.2]} 43... b5 {[%clk 0:00:02.5]} 44. Kg3
{[%clk 0:00:10.2]} 44... a5 {[%clk 0:00:02.5]} 45. f4 {[%clk 0:00:10.5]} 45...
a4 {[%clk 0:00:01.8]} 46. Rh8 {[%clk 0:00:10]} 1-0

[Event "Early-Titled-Tuesday-Blitz-December-26-2023"]
[Site "Chess.com"]
[Date "2023.12.26"]
[Round "5"]
[White "matagordo"]
[Black "robertoalejandro10"]
[Result "0-1"]
[WhiteElo "2244"]
[BlackElo "2540"]
[TimeControl "180+1"]
[EndTime "8:56:17 PST"]
[Termination "robertoalejandro10 won on time"]

1. d4 {[%clk 0:02:52.9]} 1... Nf6 {[%clk 0:02:56.9]} 2. Bf4 {[%clk 0:02:52.3]}
2... c5 {[%clk 0:02:56.7]} 3. d5 {[%clk 0:02:52.3]} 3... d6 {[%clk 0:02:56.3]}
4. Nc3 {[%clk 0:02:52.9]} 4... g6 {[%clk 0:02:56.8]} 5. e4 {[%clk 0:02:53.3]}
5... Bg7 {[%clk 0:02:57.4]} 6. Bb5+ {[%clk 0:02:53.3]} 6... Bd7 {[%clk
0:02:57.6]} 7. a4 {[%clk 0:02:54]} 7... O-O {[%clk 0:02:58.2]} 8. Nf3 {[%clk
0:02:53.7]} 8... Na6 {[%clk 0:02:58.7]} 9. O-O {[%clk 0:02:51.1]} 9... Nc7
{[%clk 0:02:59]} 10. Bc4 {[%clk 0:02:50.7]} 10... a6 {[%clk 0:02:58.1]} 11. Qe2
{[%clk 0:02:45.2]} 11... Rb8 {[%clk 0:02:56.2]} 12. a5 {[%clk 0:02:26.5]} 12...
b5 {[%clk 0:02:51.7]} 13. axb6 {[%clk 0:02:26.4]} 13... Rxb6 {[%clk 0:02:52]}
14. b3 {[%clk 0:02:17.3]} 14... Bb5 {[%clk 0:02:50.8]} 15. Rad1 {[%clk
0:01:25.5]} 15... Nd7 {[%clk 0:02:45.2]} 16. Bd2 {[%clk 0:01:15.7]} 16... Ne5
{[%clk 0:02:38.1]} 17. Nxe5 {[%clk 0:01:13.1]} 17... Bxe5 {[%clk 0:02:39]} 18.
f4 {[%clk 0:01:12.2]} 18... Bg7 {[%clk 0:02:39.2]} 19. Rfe1 {[%clk 0:01:06.8]}
19... Bxc4 {[%clk 0:02:39.5]} 20. Qxc4 {[%clk 0:01:04.4]} 20... Rb4 {[%clk
0:02:38.7]} 21. Qe2 {[%clk 0:01:04.1]} 21... Nb5 {[%clk 0:02:34.9]} 22. Na4
{[%clk 0:00:57.2]} 22... Nd4 {[%clk 0:02:29.4]} 23. Qd3 {[%clk 0:00:56.2]} 23...
Rb8 {[%clk 0:02:20]} 24. Be3 {[%clk 0:00:43.4]} 24... Qa5 {[%clk 0:02:05.8]} 25.
Bf2 {[%clk 0:00:20.5]} 25... Qb5 {[%clk 0:02:02.2]} 26. Qd2 {[%clk 0:00:04.5]}
26... Rfc8 {[%clk 0:02:00.3]} 27. Kh1 {[%clk 0:00:04.3]} 27... Qb7 {[%clk
0:01:32.3]} 28. e5 {[%clk 0:00:03.7]} 28... dxe5 {[%clk 0:01:21.2]} 29. fxe5
{[%clk 0:00:04.6]} 29... Qxd5 {[%clk 0:01:19.6]} 30. c3 {[%clk 0:00:04.4]} 30...
Qxb3 {[%clk 0:01:18.2]} 31. Nxc5 {[%clk 0:00:03.8]} 31... Rxc5 {[%clk
0:01:16.1]} 32. cxd4 {[%clk 0:00:04.5]} 32... Rd5 {[%clk 0:01:13]} 33. Qe3
{[%clk 0:00:04.4]} 33... Qxe3 {[%clk 0:01:09.6]} 34. Bxe3 {[%clk 0:00:05.3]}
34... f6 {[%clk 0:01:08.6]} 35. exf6 {[%clk 0:00:04.3]} 35... Bxf6 {[%clk
0:01:09.5]} 36. Ra1 {[%clk 0:00:04]} 36... Rb6 {[%clk 0:01:09.3]} 37. Ra4 {[%clk
0:00:03.5]} 37... Rbd6 {[%clk 0:01:09.4]} 38. Rea1 {[%clk 0:00:02.8]} 38... Bxd4
{[%clk 0:01:08.1]} 39. Bxd4 {[%clk 0:00:02.9]} 39... Rxd4 {[%clk 0:01:09]} 40.
h3 {[%clk 0:00:02.8]} 40... Rxa4 {[%clk 0:01:08.6]} 41. Rxa4 {[%clk 0:00:03]}
41... Kf7 {[%clk 0:01:07.4]} 42. Kh2 {[%clk 0:00:03.3]} 42... e5 {[%clk
0:01:07.1]} 43. Kg3 {[%clk 0:00:03.1]} 43... Re6 {[%clk 0:01:07.9]} 44. Kf3
{[%clk 0:00:03.5]} 44... e4+ {[%clk 0:01:07.7]} 45. Ke3 {[%clk 0:00:04.1]} 45...
Ke7 {[%clk 0:01:07.8]} 46. Ra5 {[%clk 0:00:04.3]} 46... Kd7 {[%clk 0:01:08]} 47.
g3 {[%clk 0:00:04]} 47... Kc7 {[%clk 0:01:08.4]} 48. Rd5 {[%clk 0:00:01.8]}
48... Kc6 {[%clk 0:01:08.1]} 49. Ra5 {[%clk 0:00:01.8]} 49... Kb6 {[%clk
0:01:08.3]} 50. Rd5 {[%clk 0:00:02.6]} 50... Re7 {[%clk 0:01:07.7]} 51. Rd8
{[%clk 0:00:03]} 51... a5 {[%clk 0:01:07.6]} 52. Rb8+ {[%clk 0:00:02.5]} 52...
Kc5 {[%clk 0:01:07.9]} 53. Ra8 {[%clk 0:00:01.5]} 53... Kb4 {[%clk 0:01:08.2]}
54. Rb8+ {[%clk 0:00:02.3]} 54... Ka3 {[%clk 0:01:08.3]} 55. Rb1 {[%clk
0:00:02.5]} 55... a4 {[%clk 0:01:08.6]} 56. Rb8 {[%clk 0:00:02.9]} 56... Ka2
{[%clk 0:01:08.2]} 57. Rb6 {[%clk 0:00:03.5]} 57... a3 {[%clk 0:01:08.6]} 58.
Rb8 {[%clk 0:00:03.4]} 58... Ka1 {[%clk 0:01:09.1]} 59. Rb6 {[%clk 0:00:04.1]}
59... a2 {[%clk 0:01:08.9]} 60. Rb3 {[%clk 0:00:04.2]} 60... Rc7 {[%clk
0:01:02]} 61. Kd2 {[%clk 0:00:02.6]} 61... e3+ {[%clk 0:00:57.4]} 62. Ke2 {[%clk
0:00:01.8]} 62... Rc2+ {[%clk 0:00:57.1]} 63. Kxe3 {[%clk 0:00:02.1]} 63... Rb2
{[%clk 0:00:58]} 64. Rc3 {[%clk 0:00:02.1]} 64... Kb1 {[%clk 0:00:57.8]} 65. Rc8
{[%clk 0:00:01.3]} 65... a1=Q {[%clk 0:00:57.9]} 66. Kf4 {[%clk 0:00:01.8]}
66... Qa5 {[%clk 0:00:55.8]} 0-1

[Event "Early-Titled-Tuesday-Blitz-December-26-2023"]
[Site "Chess.com"]
[Date "2023.12.26"]
[Round "5"]
[White "LUISMIGUELOV"]
[Black "Gyulamiryan-koryun"]
[Result "0-1"]
[WhiteElo "2190"]
[BlackElo "2012"]
[TimeControl "180+1"]
[EndTime "8:56:19 PST"]
[Termination "Gyulamiryan-koryun won on time"]

1. e4 {[%clk 0:02:58.9]} 1... c5 {[%clk 0:02:59.3]} 2. d4 {[%clk 0:02:57.3]}
2... cxd4 {[%clk 0:02:58.8]} 3. c3 {[%clk 0:02:57.8]} 3... dxc3 {[%clk
0:02:56.2]} 4. Nxc3 {[%clk 0:02:57.6]} 4... d6 {[%clk 0:02:56.5]} 5. Bc4 {[%clk
0:02:56.3]} 5... Nc6 {[%clk 0:02:55.4]} 6. Nf3 {[%clk 0:02:55.3]} 6... e6 {[%clk
0:02:54.5]} 7. Bf4 {[%clk 0:02:51.3]} 7... Be7 {[%clk 0:02:40.2]} 8. O-O {[%clk
0:02:44.8]} 8... Nf6 {[%clk 0:02:40]} 9. Qe2 {[%clk 0:02:44]} 9... O-O {[%clk
0:02:39.6]} 10. Rfd1 {[%clk 0:02:43.3]} 10... e5 {[%clk 0:02:36.7]} 11. Nxe5
{[%clk 0:02:35.7]} 11... Nxe5 {[%clk 0:02:06.9]} 12. Bxe5 {[%clk 0:02:34.5]}
12... Qc7 {[%clk 0:02:07.5]} 13. Bg3 {[%clk 0:02:27.5]} 13... Qb6 {[%clk
0:02:06]} 14. Rac1 {[%clk 0:02:10.3]} 14... Bg4 {[%clk 0:02:04.6]} 15. Qd2
{[%clk 0:02:00]} 15... Bxd1 {[%clk 0:02:03.8]} 16. Rxd1 {[%clk 0:02:00.5]} 16...
Rac8 {[%clk 0:01:59.5]} 17. Bb3 {[%clk 0:01:57]} 17... Rfd8 {[%clk 0:01:40.6]}
18. h3 {[%clk 0:01:56.6]} 18... Qc6 {[%clk 0:01:37.6]} 19. f3 {[%clk 0:01:48.5]}
19... Qc5+ {[%clk 0:01:36.6]} 20. Kh2 {[%clk 0:01:42]} 20... Nh5 {[%clk
0:01:29.1]} 21. Bf2 {[%clk 0:01:41.2]} 21... Qe5+ {[%clk 0:01:27.7]} 22. g3
{[%clk 0:01:33.6]} 22... Bg5 {[%clk 0:01:24.1]} 23. Qe2 {[%clk 0:01:15.5]} 23...
Qe7 {[%clk 0:00:56.2]} 24. Rd5 {[%clk 0:01:12.7]} 24... Rc5 {[%clk 0:00:50.5]}
25. f4 {[%clk 0:01:08.4]} 25... Nxf4 {[%clk 0:00:45.4]} 26. gxf4 {[%clk
0:01:05.1]} 26... Bxf4+ {[%clk 0:00:45.7]} 27. Bg3 {[%clk 0:01:01.1]} 27... Qh4
{[%clk 0:00:40.4]} 28. Qg4 {[%clk 0:00:54.5]} 28... Bxg3+ {[%clk 0:00:37.7]} 29.
Qxg3 {[%clk 0:00:54]} 29... Qf6 {[%clk 0:00:34.7]} 30. Rd2 {[%clk 0:00:47.5]}
30... Rg5 {[%clk 0:00:31.7]} 31. Nd5 {[%clk 0:00:40.5]} 31... Qh6 {[%clk
0:00:23.2]} 32. Qf2 {[%clk 0:00:37.4]} 32... Rh5 {[%clk 0:00:14.4]} 33. Ne7+
{[%clk 0:00:35]} 33... Kh8 {[%clk 0:00:13.7]} 34. Rd3 {[%clk 0:00:29.3]} 34...
Qg5 {[%clk 0:00:09.7]} 35. Nf5 {[%clk 0:00:22.4]} 35... Qg4 {[%clk 0:00:06.3]}
36. Bxf7 {[%clk 0:00:19.4]} 36... Qxe4 {[%clk 0:00:05.5]} 37. Ng3 {[%clk
0:00:11.4]} 37... Qxd3 {[%clk 0:00:05.1]} 38. Bxh5 {[%clk 0:00:10.7]} 38... Rc8
{[%clk 0:00:03.8]} 39. Ne2 {[%clk 0:00:03.1]} 39... h6 {[%clk 0:00:04.1]} 40.
Bg4 {[%clk 0:00:01]} 40... Rd8 {[%clk 0:00:02.2]} 0-1